bitfinex-derivatives/quotes_BTCF0:USTF0_20240814
["timestamp","ask_amount","ask_price","bid_price","bid_amount"]
[1723637787505,0.3688,61312.0,61310.0,0.00213709]
[1723637787907,0.3688,61312.0,61303.0,0.081525]
[1723637788212,0.3608,61304.0,61303.0,0.081525]
[1723637789616,0.00024468,61310.0,61308.0,0.081519]
[1723637790305,0.00024468,61310.0,61304.0,0.081524]
[1723637790616,0.3608,61306.0,61304.0,0.081524]
[1723637790913,0.3608,61306.0,61297.0,0.68114468]
[1723637790914,0.3608,61306.0,61300.0,0.081529]
[1723637791120,0.3608,61306.0,61300.0,0.251529]
[1723637791308,0.3608,61306.0,61301.0,0.081528]
[1723637791509,0.3608,61306.0,61305.0,0.081523]
[1723637791710,0.00624468,61310.0,61301.0,0.3608]
[1723637791711,0.001,61304.0,61301.0,0.3608]
[1723637791910,0.001,61304.0,61303.0,0.081526]
[1723637792209,0.36704468,61310.0,61309.0,0.081518]
[1723637792210,0.00624468,61310.0,61309.0,0.081518]
[1723637792401,0.00624468,61310.0,61309.0,0.604418]
[1723637792807,0.002,61310.0,61309.0,1.41222]
[1723637793112,0.3608,61330.0,61309.0,1.51902]
[1723637793314,0.3608,61330.0,61322.0,0.081499]
[1723637793811,0.3608,61325.0,61320.0,0.00024468]
[1723637794403,0.081499,61323.0,61320.0,0.00024468]
[1723637795113,0.081502,61321.0,61320.0,0.00024468]
[1723637795514,0.570742,61321.0,61320.0,0.00024468]
[1723637796416,0.970742,61321.0,61320.0,0.00024468]
[1723637796602,0.081508,61316.0,61309.0,0.001]
[1723637796803,0.3608,61310.0,61309.0,0.001]
[1723637797210,0.3608,61310.0,61301.0,0.002]
[1723637797404,0.3608,61304.0,61298.0,0.328]
[1723637797610,0.3608,61304.0,61300.0,0.081528]
[1723637797812,0.3608,61304.0,61298.0,0.50721232]
[1723637797813,0.3608,61304.0,61298.0,0.33721232]
[1723637798006,0.3608,61304.0,61299.0,0.081531]
[1723637798304,0.3608,61304.0,61299.0,0.241531]
[1723637798512,0.3608,61304.0,61299.0,0.16]
[1723637798915,0.3608,61304.0,61301.0,0.081528]
[1723637799321,0.3608,61304.0,61298.0,0.35121232]
[1723637799513,0.3608,61304.0,61299.0,0.081531]
[1723637799813,0.3608,61304.0,61299.0,0.251531]
[1723637800919,0.3618,61304.0,61299.0,0.081531]
[1723637801413,0.3608,61304.0,61299.0,0.081531]
[1723637801617,0.00024468,61307.0,61300.0,0.3608]
[1723637801815,0.00024468,61307.0,61303.0,0.434424]
[1723637801816,0.001,61304.0,61303.0,0.434424]
[1723637802016,0.3618,61304.0,61299.0,0.012]
[1723637802418,0.3628,61304.0,61299.0,0.026]
[1723637802607,0.3628,61304.0,61300.0,0.00833917]
[1723637803215,0.3628,61304.0,61299.0,0.026]
[1723637803823,0.3628,61304.0,61302.0,0.081526]
[1723637804027,0.3628,61304.0,61300.0,0.0083196]
[1723637804319,0.3618,61304.0,61302.0,0.081526]
[1723637805423,0.3618,61304.0,61303.0,0.081526]
[1723637806417,0.3618,61304.0,61303.0,0.093526]
[1723637807320,0.3628,61304.0,61303.0,0.093526]
[1723637807519,0.3628,61304.0,61303.0,0.081526]
[1723637807520,0.3638,61304.0,61303.0,0.081526]
[1723637807717,0.3648,61304.0,61303.0,0.081526]
[1723637807921,0.004,61304.0,61303.0,0.63276416]
[1723637808118,0.004,61304.0,61303.0,0.592426]
[1723637808324,0.004,61304.0,61303.0,0.65687688]
[1723637808623,0.00088605,61304.0,61303.0,0.65687688]
[1723637808928,0.00024468,61307.0,61306.0,0.081522]
[1723637809120,0.00024468,61307.0,61306.0,0.231522]
[1723637809723,0.00024468,61307.0,61306.0,1.120882]
[1723637809917,0.00024468,61307.0,61306.0,1.27260213]
[1723637810521,0.00024468,61307.0,61306.0,1.2015509]
[1723637810715,0.00024468,61307.0,61306.0,1.120882]
[1723637811128,0.00024468,61307.0,61306.0,0.720882]
[1723637811324,0.00024468,61307.0,61306.0,1.120882]
[1723637811521,0.00024468,61307.0,61306.0,0.231522]
[1723637813016,0.00124468,61307.0,61306.0,0.24776308]
[1723637814024,0.00124468,61307.0,61306.0,0.61023198]
[1723637814230,0.00124468,61307.0,61306.0,0.52956308]
[1723637814521,0.00124468,61307.0,61306.0,0.61023198]
[1723637814724,0.00124468,61307.0,61306.0,0.60047123]
[1723637814931,0.00124468,61307.0,61306.0,0.60028566]
[1723637815930,0.00124468,61307.0,61306.0,1.48964566]
[1723637816229,0.00124468,61307.0,61306.0,1.08964566]
[1723637816734,0.00124468,61307.0,61306.0,0.60028566]
[1723637817030,0.00124468,61307.0,61306.0,0.60023924]
[1723637817523,0.00124468,61307.0,61306.0,1.48959924]
[1723637818920,0.00124468,61307.0,61306.0,1.57112124]
[1723637819124,0.3608,61324.0,61317.0,0.081506]
[1723637819323,0.3608,61324.0,61306.0,1.85039924]
[1723637819324,0.3608,61324.0,61320.0,0.2818]
[1723637819731,0.3608,61324.0,61320.0,0.33028639]
[1723637820921,0.3608,61324.0,61320.0,0.363303]
[1723637821123,0.3608,61324.0,61320.0,0.41178939]
[1723637821330,0.3608,61324.0,61320.0,0.363303]
[1723637821530,0.3608,61324.0,61319.0,0.04848639]
[1723637821729,0.3608,61324.0,61316.0,0.0648932]
[1723637821730,0.3608,61324.0,61318.0,0.04848639]
[1723637821932,0.3608,61324.0,61321.0,0.081501]
[1723637822132,0.3678,61324.0,61320.0,0.2828]
[1723637822537,0.3728,61324.0,61320.0,0.2828]
[1723637822834,0.3728,61324.0,61321.0,0.081501]
[1723637823031,0.3728,61324.0,61320.0,0.33128639]
[1723637823230,0.3708,61324.0,61320.0,0.33028639]
[1723637823545,0.3708,61324.0,61320.0,0.2818]
[1723637823734,0.3708,61324.0,61320.0,0.33935817]
[1723637823932,0.3738,61324.0,61320.0,0.34035817]
[1723637824235,0.944538,61324.0,61320.0,0.001]
[1723637824437,0.3738,61324.0,61320.0,0.001]
[1723637828538,0.081505,61319.0,61316.0,0.00024468]
[1723637828740,0.3608,61317.0,61316.0,0.00024468]
[1723637829137,0.081514,61312.0,61307.0,0.04848639]
[1723637829343,0.3608,61308.0,61307.0,0.04848639]
[1723637829647,0.3608,61308.0,61306.0,0.04848639]
[1723637830036,0.85016,61308.0,61306.0,0.04848639]
[1723637830230,0.85016,61308.0,61303.0,0.06464852]
[1723637830231,0.85016,61308.0,61307.0,0.04848639]
[1723637830431,0.3608,61308.0,61307.0,0.04848639]
[1723637830635,0.85012,61308.0,61307.0,0.04848639]
[1723637832142,0.85012,61308.0,61307.0,0.002]
[1723637832143,0.3608,61308.0,61307.0,0.002]
[1723637832343,0.85012,61308.0,61307.0,0.002]
[1723637832541,0.3608,61308.0,61307.0,0.002]
[1723637832748,0.3608,61308.0,61307.0,0.005]
[1723637833133,0.3608,61308.0,61307.0,0.05348639]
[1723637834046,0.36995049,61312.0,61307.0,0.005]
[1723637834047,0.3608,61312.0,61307.0,0.005]
[1723637834345,0.3608,61312.0,61309.0,0.04852478]
[1723637835445,0.3608,61312.0,61307.0,0.005]
[1723637835446,0.3608,61312.0,61311.0,0.2818]
[1723637835744,0.06504704,61326.0,61311.0,1.2026]
[1723637835951,0.3608,61329.0,61328.0,0.081493]
[1723637836243,0.3608,61329.0,61328.0,0.363293]
[1723637837043,0.00024468,61335.0,61330.0,0.081489]
[1723637837245,0.00024468,61335.0,61328.0,0.6426]
[1723637837246,0.00024468,61335.0,61334.0,0.04845457]
[1723637837445,0.00024468,61335.0,61334.0,0.081485]
[1723637837645,0.00024468,61335.0,61334.0,0.12992201]
[1723637837848,0.00024468,61335.0,61334.0,0.04843752]
[1723637838243,0.00024468,61335.0,61334.0,0.081485]
[1723637839751,0.00224468,61335.0,61334.0,0.082485]
[1723637840546,0.00224468,61335.0,61334.0,0.09077768]
[1723637840743,0.00124468,61335.0,61334.0,0.73337768]
[1723637841253,0.00124468,61335.0,61334.0,0.8140507]
[1723637841949,0.01324468,61335.0,61334.0,1.3041707]
[1723637842254,0.00016128,61341.0,61340.0,0.081477]
[1723637842451,0.00016128,61341.0,61340.0,0.724077]
[1723637842651,0.3608,61357.0,61350.0,0.081464]
[1723637842855,0.3608,61357.0,61351.0,0.2818]
[1723637843254,0.3608,61357.0,61345.0,0.6426]
[1723637843551,0.3608,61357.0,61346.0,0.081468]
[1723637843758,0.3608,61357.0,61347.0,0.081468]
[1723637844151,0.3608,61357.0,61345.0,0.65273045]
[1723637844360,0.3608,61357.0,61351.0,0.2818]
[1723637845057,0.3608,61357.0,61345.0,0.37025513]
[1723637845058,0.3608,61357.0,61345.0,0.65205513]
[1723637845253,0.3608,61357.0,61351.0,0.2818]
[1723637845650,0.3608,61357.0,61355.0,0.081457]
[1723637847368,0.3668,61357.0,61355.0,0.081457]
[1723637848160,0.3668,61357.0,61356.0,0.081456]
[1723637848366,0.3748,61357.0,61356.0,0.081456]
[1723637848761,0.3748,61357.0,61356.0,0.291256]
[1723637848955,0.014,61357.0,61356.0,0.291256]
[1723637849461,0.3608,61372.0,61364.0,0.081445]
[1723637849664,0.3608,61372.0,61370.0,0.2818]
[1723637850462,0.3608,61372.0,61370.0,0.363237]
[1723637850867,0.3608,61372.0,61371.0,0.081436]
[1723637851170,0.3608,61372.0,61371.0,0.188836]
[1723637851364,0.1053,61391.0,61371.0,1.13624]
[1723637851365,0.3608,61387.0,61371.0,1.13624]
[1723637851668,0.3608,61387.0,61379.0,0.2818]
[1723637851669,0.3608,61382.0,61379.0,0.2818]
[1723637851861,0.3608,61382.0,61380.0,0.081423]
[1723637852262,0.3608,61382.0,61379.0,0.2818]
[1723637852475,0.3608,61382.0,61371.0,0.2154]
[1723637852764,0.3608,61377.0,61371.0,0.2154]
[1723637853073,0.3608,61377.0,61371.0,0.001]
[1723637853264,0.3608,61377.0,61372.0,0.081434]
[1723637853569,0.3608,61377.0,61371.0,0.001]
[1723637853570,0.3608,61377.0,61376.0,0.081429]
[1723637854066,0.3608,61382.0,61379.0,0.001]
[1723637854266,0.3608,61382.0,61381.0,0.363223]
[1723637854468,0.3608,61389.0,61381.0,0.363223]
[1723637854469,0.3608,61389.0,61388.0,0.081413]
[1723637854669,0.3608,61389.0,61388.0,0.2818]
[1723637854975,0.3608,61396.0,61388.0,0.2818]
[1723637855572,0.3608,61396.0,61393.0,0.081406]
[1723637855761,0.3608,61396.0,61395.0,0.2818]
[1723637856161,0.3608,61396.0,61387.0,0.00894791]
[1723637856162,0.3608,61396.0,61389.0,0.2818]
[1723637856366,0.3608,61396.0,61394.0,0.081405]
[1723637856569,0.3608,61396.0,61395.0,0.081404]
[1723637856764,0.3608,61396.0,61395.0,0.363204]
[1723637857267,0.3608,61396.0,61389.0,0.2818]
[1723637857467,0.3608,61390.0,61389.0,0.2818]
[1723637857867,0.3608,61390.0,61388.0,0.001]
[1723637858171,0.3608,61390.0,61388.0,0.002]
[1723637858470,0.3608,61390.0,61389.0,0.364212]
[1723637858874,0.3608,61390.0,61389.0,0.365212]
[1723637859272,0.3608,61401.0,61395.0,0.081404]
[1723637859273,0.3608,61396.0,61395.0,0.081404]
[1723637859466,0.3608,61396.0,61395.0,0.363204]
[1723637860269,0.3608,61401.0,61400.0,0.081397]
[1723637860972,0.3608,61401.0,61400.0,0.08966818]
[1723637861573,0.3608,61401.0,61400.0,0.23066818]
[1723637862175,0.3608,61401.0,61400.0,0.001]
[1723637863063,0.8494,61401.0,61400.0,0.002]
[1723637863274,0.8494,61401.0,61394.0,0.00024447]
[1723637863275,1.3574,61401.0,61394.0,0.00024447]
[1723637863580,0.3608,61395.0,61394.0,0.00024447]
[1723637863970,0.930844,61395.0,61394.0,0.00024447]
[1723637864167,1.24944,61395.0,61378.0,0.2818]
[1723637864472,0.3608,61380.0,61364.0,0.2818]
[1723637864872,0.3608,61374.0,61364.0,0.2818]
[1723637865077,0.3608,61367.0,61364.0,0.2818]
[1723637865375,0.3608,61367.0,61363.0,0.00024447]
[1723637865676,0.3608,61367.0,61346.0,0.2047]
[1723637865979,0.3608,61355.0,61354.0,0.081459]
[1723637866581,0.36093511,61355.0,61350.0,0.352]
[1723637866775,0.36093511,61355.0,61351.0,0.081462]
[1723637867480,0.36093511,61355.0,61353.0,0.08146]
[1723637869878,0.36093511,61355.0,61353.0,0.09446]
[1723637870074,0.36093511,61355.0,61353.0,0.013]
[1723637871478,0.081433,61374.0,61353.0,0.013]
[1723637871479,0.3608,61375.0,61354.0,0.442259]
[1723637871781,0.3608,61375.0,61363.0,0.3608]
[1723637872181,0.3608,61375.0,61374.0,0.433432]
[1723637872388,0.3608,61382.0,61374.0,0.433432]
[1723637872389,0.3608,61382.0,61379.0,0.081425]
[1723637872582,0.00024378,61381.0,61379.0,0.081425]
[1723637873088,0.00024378,61381.0,61374.0,0.352]
[1723637873290,0.00024378,61381.0,61375.0,0.08143]
[1723637873687,0.00024378,61381.0,61374.0,0.352]
[1723637874190,0.01,61375.0,61374.0,0.434432]
[1723637874385,0.01,61375.0,61374.0,0.001]
[1723637875982,0.4988,61375.0,61374.0,0.001]
[1723637876389,0.4888,61375.0,61368.0,0.00024447]
[1723637876588,0.3608,61377.0,61368.0,0.00024447]
[1723637876988,0.442228,61377.0,61368.0,0.00024447]
[1723637877287,0.3608,61370.0,61368.0,0.00024447]
[1723637878187,0.59654,61369.0,61351.0,0.081462]
[1723637878383,0.3608,61361.0,61351.0,0.081462]
[1723637878880,0.3608,61361.0,61350.0,0.33603483]
[1723637879280,0.00024447,61362.0,61355.0,0.352]
[1723637879885,0.00024447,61362.0,61358.0,0.081453]
[1723637880080,0.001,61361.0,61358.0,0.081453]
[1723637880482,0.001,61361.0,61355.0,0.352]
[1723637880692,0.3608,61360.0,61355.0,0.352]
[1723637881896,0.3608,61360.0,61350.0,0.328]
[1723637882284,0.3608,61360.0,61355.0,0.011]
[1723637883584,0.3608,61360.0,61350.0,0.409464]
[1723637883784,0.3608,61360.0,61350.0,0.423464]
[1723637883993,0.3618,61360.0,61355.0,0.013]
[1723637884501,0.3618,61360.0,61358.0,0.081453]
[1723637884682,0.3618,61360.0,61359.0,0.081452]
[1723637884888,0.001,61360.0,61359.0,0.081452]
[1723637885590,0.001,61360.0,61359.0,0.442252]
[1723637886182,0.3608,61381.0,61359.0,1.64473005]
[1723637886392,0.3608,61386.0,61369.0,0.7128]
[1723637886594,0.3608,61386.0,61378.0,0.081426]
[1723637886996,0.3608,61386.0,61376.0,0.352]
[1723637887196,0.3608,61386.0,61375.0,0.3608]
[1723637887493,0.081418,61385.0,61375.0,0.36104447]
[1723637888501,0.3608,61386.0,61375.0,0.36104447]
[1723637888990,0.3688,61386.0,61378.0,0.001]
[1723637889298,0.081423,61381.0,61378.0,0.001]
[1723637889486,0.081425,61379.0,61378.0,0.001]
[1723637889798,0.081425,61379.0,61375.0,0.00024447]
[1723637889991,0.4631,61380.0,61375.0,0.00124447]
[1723637890591,0.3608,61380.0,61375.0,0.00124447]
[1723637890891,0.3608,61380.0,61375.0,0.00024447]
[1723637892094,0.002,61379.0,61375.0,0.00024447]
[1723637892703,0.006,61379.0,61375.0,0.00724447]
[1723637893095,0.002,61379.0,61375.0,0.00024447]
[1723637893296,0.002,61379.0,61375.0,0.00824447]
[1723637893694,0.002,61379.0,61376.0,0.081429]
[1723637893891,0.3618,61380.0,61376.0,0.081429]
[1723637894093,0.3618,61380.0,61376.0,0.0482874]
[1723637894294,0.3618,61380.0,61375.0,0.01224447]
[1723637894996,0.081426,61379.0,61376.0,0.005]
[1723637895500,0.570186,61379.0,61376.0,0.005]
[1723637895902,0.3618,61380.0,61376.0,0.005]
[1723637896800,0.001,61379.0,61376.0,0.005]
[1723637897002,0.002,61379.0,61377.0,0.081427]
[1723637897302,0.002,61379.0,61377.0,0.0482874]
[1723637897695,0.002,61379.0,61376.0,0.007]
[1723637897696,0.002,61379.0,61376.0,0.0552874]
[1723637897896,0.3608,61380.0,61376.0,0.0482874]
[1723637898096,0.3608,61380.0,61375.0,0.05453187]
[1723637898296,0.3608,61380.0,61376.0,0.0482874]
[1723637898601,0.3608,61380.0,61375.0,0.05453187]
[1723637899096,0.3608,61380.0,61375.0,0.00624447]
[1723637899705,0.3608,61380.0,61377.0,0.01]
[1723637900693,0.3608,61380.0,61377.0,0.004]
[1723637900895,0.443225,61380.0,61377.0,0.004]
[1723637901101,0.931985,61380.0,61377.0,0.004]
[1723637901301,0.48876,61379.0,61377.0,0.004]
[1723637901600,0.570186,61379.0,61377.0,0.004]
[1723637901807,0.48876,61378.0,61375.0,0.01424447]
[1723637901999,0.082426,61379.0,61375.0,0.00624447]
[1723637902201,0.081426,61379.0,61375.0,0.00624447]
[1723637902506,0.081426,61379.0,61377.0,0.004]
[1723637902900,0.930987,61378.0,61377.0,0.004]
[1723637903100,1.041487,61378.0,61377.0,0.01]
[1723637903298,1.50653404,61378.0,61377.0,0.016]
[1723637903598,0.081429,61376.0,61375.0,0.00824447]
[1723637904000,0.970229,61376.0,61375.0,0.00824447]
[1723637904404,0.081436,61371.0,61365.0,0.22812]
[1723637904606,0.95373499,61376.0,61363.0,0.0482874]
[1723637904607,0.3608,61367.0,61363.0,0.0482874]
[1723637904903,0.081443,61366.0,61362.0,0.0482874]
[1723637905105,0.081443,61366.0,61360.0,0.0482874]
[1723637905310,0.3608,61361.0,61358.0,0.0482874]
[1723637906095,0.3608,61361.0,61357.0,0.04853187]
[1723637906504,0.00024447,61369.0,61357.0,0.04853187]
[1723637906812,0.3608,61365.0,61360.0,0.0482874]
[1723637907008,0.3608,61365.0,61359.0,0.0482874]
[1723637907216,0.3608,61360.0,61359.0,0.0482874]
[1723637909405,0.3618,61360.0,61359.0,0.0552874]
[1723637910006,0.3618,61360.0,61359.0,0.3368874]
[1723637910316,0.3618,61360.0,61359.0,0.2886]
[1723637910317,0.001,61360.0,61359.0,0.2886]
[1723637911104,0.001,61360.0,61359.0,0.33700065]
[1723637911310,0.001,61360.0,61359.0,0.2886]
[1723637913011,0.3618,61360.0,61359.0,0.2886]
[1723637913208,0.3618,61360.0,61359.0,0.33701349]
[1723637913416,0.85072,61360.0,61359.0,0.007]
[1723637913616,1.332171,61360.0,61359.0,0.007]
[1723637913804,1.332171,61360.0,61352.0,0.04841393]
[1723637913805,0.48892,61359.0,61352.0,0.04841393]
[1723637914009,0.442261,61353.0,61344.0,0.04841393]
[1723637914211,0.442261,61353.0,61342.0,0.2791832]
[1723637914212,0.3608,61345.0,61343.0,0.04845434]
[1723637915108,0.48904,61344.0,61342.0,0.04845434]
[1723637915305,0.1076,61344.0,61341.0,0.04845434]
[1723637915609,0.1076,61344.0,61340.0,0.04845434]
[1723637916010,0.1076,61344.0,61341.0,0.04845434]
[1723637916215,0.1076,61344.0,61338.0,0.00024447]
[1723637916216,0.1076,61344.0,61339.0,0.04845434]
[1723637917115,0.1076,61344.0,61338.0,0.04869881]
[1723637917331,0.1086,61344.0,61342.0,0.014]
[1723637917712,0.59764,61344.0,61342.0,0.014]
[1723637918412,0.3608,61343.0,61342.0,0.014]
[1723637919215,0.3608,61343.0,61339.0,0.004]
[1723637919418,0.3608,61343.0,61342.0,0.433574]
[1723637919718,0.38743499,61364.0,61342.0,0.433574]
[1723637919719,0.3608,61360.0,61349.0,0.081465]
[1723637919911,0.3608,61360.0,61349.0,0.794365]
[1723637920118,0.3608,61360.0,61357.0,0.081454]
[1723637920316,0.3608,61360.0,61353.0,0.081459]
[1723637920715,0.3608,61360.0,61354.0,0.081458]
[1723637921114,0.3608,61360.0,61351.0,0.04832266]
[1723637921314,0.3608,61360.0,61351.0,0.04856713]
[1723637921513,0.3608,61360.0,61351.0,0.00024447]
[1723637922222,0.3608,61360.0,61352.0,0.081461]
[1723637922614,0.3748,61360.0,61357.0,0.001]
[1723637923124,0.3928,61360.0,61357.0,0.001]
[1723637923916,0.3928,61360.0,61351.0,0.00024447]
[1723637923917,0.00933093,61363.0,61356.0,0.3521]
[1723637924120,0.00933093,61363.0,61356.0,0.40042266]
[1723637924315,0.00933093,61363.0,61357.0,0.04832266]
[1723637924521,0.00933093,61363.0,61360.0,0.08145]
[1723637924921,0.00933093,61363.0,61356.0,0.3521]
[1723637925110,0.00933093,61363.0,61357.0,0.081454]
[1723637925315,0.00933093,61363.0,61355.0,0.04832266]
[1723637925619,0.00933093,61363.0,61354.0,0.40912266]
[1723637926014,0.00933093,61363.0,61355.0,0.04832266]
[1723637926210,0.00933093,61363.0,61354.0,0.3608]
[1723637926211,0.003,61360.0,61356.0,0.04832266]
[1723637926411,0.003,61360.0,61357.0,0.04832266]
[1723637926917,0.004,61360.0,61357.0,0.04832266]
[1723637927115,0.004,61360.0,61358.0,0.04832266]
[1723637927514,0.001,61360.0,61358.0,0.04832266]
[1723637927719,0.3618,61360.0,61358.0,0.04832266]
[1723637928020,0.3618,61360.0,61354.0,0.4261832]
[1723637928021,0.3618,61360.0,61356.0,0.04832266]
[1723637928222,0.3618,61360.0,61357.0,0.04832266]
[1723637928627,0.3618,61360.0,61354.0,0.3618]
[1723637928628,0.3618,61360.0,61356.0,0.04832266]
[1723637929217,0.3618,61360.0,61357.0,0.04832266]
[1723637929832,0.001,61360.0,61359.0,0.12977466]
[1723637930018,0.001,61360.0,61359.0,0.081452]
[1723637930219,0.001,61360.0,61359.0,0.12977466]
[1723637930427,0.001,61360.0,61359.0,0.081452]
[1723637930817,0.001,61360.0,61359.0,0.12977466]
[1723637932229,0.001,61360.0,61359.0,0.081452]
[1723637932429,0.001,61360.0,61359.0,0.12987465]
[1723637933126,0.001,61360.0,61359.0,0.081452]
[1723637933328,0.00933093,61363.0,61359.0,0.082452]
[1723637933626,0.00933093,61363.0,61360.0,0.04843053]
[1723637934023,0.00933093,61363.0,61359.0,0.082452]
[1723637934024,0.00933093,61363.0,61359.0,0.13088253]
[1723637934823,0.00933093,61363.0,61359.0,0.04943053]
[1723637935023,0.00933093,61363.0,61360.0,0.001]
[1723637935717,0.48892,61362.0,61360.0,0.04843053]
[1723637935918,0.48892,61362.0,61359.0,0.001]
[1723637936217,0.442251,61360.0,61359.0,0.001]
[1723637936621,0.931171,61360.0,61359.0,0.001]
[1723637936929,0.081456,61356.0,61354.0,0.04843053]
[1723637937137,0.081461,61352.0,61351.0,0.00024447]
[1723637937325,0.481461,61352.0,61351.0,0.00024447]
[1723637937629,0.481461,61352.0,61345.0,0.04843053]
[1723637937630,0.889,61352.0,61345.0,0.04843053]
[1723637937827,0.889,61352.0,61344.0,0.04843053]
[1723637937828,0.3608,61347.0,61344.0,0.04843053]
[1723637938025,0.3608,61347.0,61340.0,0.0643832]
[1723637938026,0.108,61346.0,61343.0,0.04843053]
[1723637939229,0.18947,61346.0,61340.0,0.04843053]
[1723637939430,0.3608,61341.0,61340.0,0.04843053]
[1723637939627,0.3608,61341.0,61339.0,0.04843053]
[1723637940328,0.3608,61347.0,61338.0,0.06462767]
[1723637940528,0.3608,61347.0,61341.0,0.04846425]
[1723637940828,0.3608,61347.0,61342.0,0.04846425]
[1723637941034,0.37006349,61347.0,61342.0,0.04846425]
[1723637942232,0.37006349,61347.0,61338.0,0.14610767]
[1723637942233,0.37006349,61347.0,61341.0,0.04846425]
[1723637942535,0.001,61341.0,61340.0,0.04846425]
[1723637943032,0.081471,61345.0,61340.0,0.04846425]
[1723637943433,0.37006349,61347.0,61340.0,0.04846425]
[1723637943736,0.001,61341.0,61340.0,0.04846425]
[1723637943932,0.3618,61341.0,61340.0,0.04846425]
[1723637944137,0.3618,61341.0,61340.0,0.003]
[1723637945126,0.001,61341.0,61340.0,0.13294125]
[1723637945326,0.001,61341.0,61340.0,0.084477]
[1723637945528,0.001,61341.0,61340.0,0.0673832]
[1723637945728,0.001,61341.0,61340.0,0.003]
[1723637946138,0.001,61341.0,61338.0,0.06462767]
[1723637946351,0.001,61341.0,61339.0,0.04845326]
[1723637946352,0.3618,61341.0,61339.0,0.04845326]
[1723637946640,0.3618,61341.0,61338.0,0.04869773]
[1723637947035,0.3618,61341.0,61340.0,0.003]
[1723637948036,0.3608,61341.0,61340.0,0.003]
[1723637948431,0.3618,61341.0,61340.0,0.003]
[1723637949231,0.3618,61341.0,61337.0,0.03269773]
[1723637949636,0.3618,61341.0,61335.0,0.0643832]
[1723637950336,0.3618,61341.0,61340.0,0.003]
[1723637951229,0.3628,61341.0,61339.0,0.081478]
[1723637951433,0.3628,61341.0,61337.0,0.0643832]
[1723637951641,0.3618,61341.0,61336.0,0.0643832]
[1723637951839,0.3618,61341.0,61335.0,0.0713832]
[1723637952245,0.3608,61341.0,61335.0,0.0643832]
[1723637952539,0.3618,61341.0,61335.0,0.0643832]
[1723637952736,0.3618,61341.0,61334.0,0.11643247]
[1723637953137,0.3618,61341.0,61340.0,0.003]
[1723637953343,0.3628,61341.0,61340.0,0.003]
[1723637954344,0.3638,61341.0,61335.0,0.085483]
[1723637954637,0.3618,61341.0,61336.0,0.081481]
[1723637955239,0.3608,61341.0,61336.0,0.081481]
[1723637955544,0.3628,61341.0,61340.0,0.003]
[1723637955947,0.3608,61341.0,61340.0,0.003]
[1723637956640,0.3618,61341.0,61340.0,0.003]
[1723637956838,0.3618,61341.0,61340.0,0.084477]
[1723637957038,0.001,61341.0,61340.0,0.084477]
[1723637957639,0.001,61341.0,61340.0,0.081477]
[1723637957839,0.002,61341.0,61340.0,0.081477]
[1723637958244,0.002,61341.0,61340.0,0.1458602]
[1723637958644,0.001,61341.0,61340.0,0.1458602]
[1723637958841,0.001,61341.0,61340.0,0.1488602]
[1723637961350,0.001,61341.0,61340.0,0.084477]
[1723637962452,0.00024447,61351.0,61348.0,0.081466]
[1723637962649,0.00024447,61351.0,61349.0,0.189665]
[1723637962849,0.00024447,61351.0,61349.0,0.36253335]
[1723637963041,0.00024447,61351.0,61349.0,0.28106835]
[1723637963451,0.00024447,61351.0,61349.0,0.2164]
[1723637964647,0.00024447,61351.0,61349.0,0.28106835]
[1723637965147,0.00024447,61351.0,61350.0,0.06466835]
[1723637965457,0.00624447,61351.0,61350.0,0.06466835]
[1723637965651,0.01024447,61351.0,61350.0,0.06466835]
[1723637966141,0.00424447,61351.0,61350.0,0.06466835]
[1723637966346,0.01124447,61351.0,61350.0,0.06466835]
[1723637967142,0.01824447,61351.0,61349.0,0.1082]
[1723637967655,0.01824447,61351.0,61349.0,0.1729834]
[1723637968249,0.01824447,61351.0,61349.0,0.1082]
[1723637968458,0.00024447,61351.0,61349.0,0.1082]
[1723637969153,0.00024447,61351.0,61350.0,0.06477489]
[1723637969347,0.00824447,61351.0,61350.0,0.06477489]
[1723637969547,0.01524447,61351.0,61349.0,0.1082]
[1723637969860,0.01524447,61351.0,61350.0,0.06478132]
[1723637970652,0.01524447,61351.0,61350.0,0.081464]
[1723637970849,0.01524447,61351.0,61350.0,0.24414747]
[1723637971152,0.01524447,61351.0,61350.0,0.16331203]
[1723637971458,0.01524447,61351.0,61350.0,0.16277062]
[1723637971755,0.02124447,61351.0,61350.0,0.16277062]
[1723637971956,0.01424447,61351.0,61350.0,0.16277062]
[1723637973262,0.01424447,61351.0,61350.0,0.243651]
[1723637973761,0.01424447,61351.0,61349.0,0.1082]
[1723637974251,0.01424447,61351.0,61348.0,0.00907106]
[1723637974447,0.01424447,61351.0,61347.0,0.08088038]
[1723637974655,0.01424447,61351.0,61348.0,0.081466]
[1723637974851,0.01424447,61351.0,61348.0,0.16234638]
[1723637975051,0.00624447,61351.0,61348.0,0.16234638]
[1723637975251,0.00024447,61351.0,61348.0,0.16234638]
[1723637975659,0.00724447,61351.0,61348.0,0.16234638]
[1723637975857,0.01224447,61351.0,61348.0,0.16234638]
[1723637976159,0.01624447,61351.0,61348.0,0.16234638]
[1723637977055,0.01624447,61351.0,61350.0,0.081464]
[1723637977056,0.01524447,61351.0,61350.0,0.081464]
[1723637977251,0.01524447,61351.0,61350.0,0.81172353]
[1723637977453,0.01524447,61351.0,61350.0,0.16272353]
[1723637977856,0.01524447,61351.0,61350.0,0.24358569]
[1723637978256,0.01524447,61351.0,61350.0,0.081464]
[1723637978564,0.00924447,61351.0,61350.0,0.081464]
[1723637978765,0.00624447,61351.0,61350.0,0.081464]
[1723637979156,0.01424447,61351.0,61350.0,0.081464]
[1723637979458,0.01424447,61351.0,61350.0,0.710464]
[1723637979665,0.01424447,61351.0,61350.0,0.79132616]